bitfinex-derivatives/quotes_SOLF0:USTF0_20241024
["timestamp","ask_amount","ask_price","bid_price","bid_amount"]
[1729810037041,12.06763333,179.07,178.99,4.32]
[1729810037230,2.7943,179.02,178.99,4.32]
[1729810037633,12.06763333,179.07,178.99,4.32]
[1729810037840,2.7937,179.06,179.0,12.06763333]
[1729810038238,8.0125,179.1,179.03,12.06763333]
[1729810038435,2.7937,179.06,179.03,12.06763333]
[1729810038831,5.5842,179.16,179.03,19.18153333]
[1729810038832,2.7934,179.07,179.03,19.18153333]
[1729810039743,2.7934,179.07,179.03,20.29887333]
[1729810039937,16.38763333,179.14,179.03,20.29887333]
[1729810040141,2.7934,179.08,179.05,12.06763333]
[1729810040840,2.7934,179.08,179.05,13.18497333]
[1729810041038,16.38763333,179.14,179.05,13.18497333]
[1729810041342,3.6448,179.17,179.05,13.18497333]
[1729810041343,7.9648,179.17,179.08,12.06763333]
[1729810042046,7.9648,179.17,179.08,13.18497333]
[1729810042953,2.7927,179.12,179.08,13.18497333]
[1729810043939,2.7928,179.11,179.08,13.18497333]
[1729810046844,7.9648,179.17,179.08,13.18497333]
[1729810047145,7.9648,179.17,179.1,12.06763333]
[1729810047346,3.6448,179.17,179.1,12.06763333]
[1729810047542,3.6448,179.17,179.1,13.18497333]
[1729810048140,2.7925,179.14,179.1,13.18497333]
[1729810048646,3.6448,179.17,179.1,13.18497333]
[1729810048946,2.7925,179.13,179.1,13.18497333]
[1729810049745,2.7925,179.13,179.11,4.32]
[1729810050746,2.4649,179.17,179.11,5.43734]
[1729810051052,2.4649,179.17,179.12,12.06763333]
[1729810051252,115.923217,179.2,179.12,13.18497333]
[1729810051552,1.1503,179.21,179.14,12.06763333]
[1729810051746,1.1503,179.21,179.11,16.38763333]
[1729810051947,2.7924,179.14,179.11,17.50497333]
[1729810052146,13.21793333,179.21,179.11,17.50497333]
[1729810052647,2.7922,179.15,179.11,20.29777333]
[1729810052844,1.1503,179.21,179.11,17.50497333]
[1729810053040,1.1503,179.21,179.13,12.06763333]
[1729810053542,1.1503,179.21,179.13,13.18497333]
[1729810053749,2.7916,179.19,179.13,13.18497333]
[1729810053954,1.1503,179.21,179.13,13.18497333]
[1729810054457,2.7917,179.18,179.13,15.97737333]
[1729810055757,17.56453333,179.25,179.14,2.7922]
[1729810055941,0.94634662,179.24,179.15,4.32]
[1729810056143,2.7912,179.22,179.15,4.32]
[1729810056457,17.56453333,179.25,179.15,4.32]
[1729810056659,0.94634553,179.24,179.15,5.43734]
[1729810057244,0.94634553,179.24,179.14,4.32]
[1729810057245,12.06763333,179.2,179.14,4.32]
[1729810057449,12.06763333,179.2,179.13,4.32]
[1729810057643,12.06763333,179.2,179.12,5.43734]
[1729810058146,12.06763333,179.2,179.12,5.42033]
[1729810058658,2.7923,179.14,179.12,5.42033]
[1729810058856,2.7923,179.14,179.12,1.10033]
[1729810059044,12.06763333,179.2,179.12,5.42033]
[1729810059244,2.7922,179.15,179.12,5.42033]
[1729810060253,5.4969,179.25,179.12,17.48796333]
[1729810060451,13.01398579,179.24,179.12,17.48796333]
[1729810060655,2.7914,179.2,179.12,20.28056333]
[1729810060954,12.06763333,179.21,179.12,5.42033]
[1729810061153,13.21983333,179.19,179.12,1.10033]
[1729810061361,2.7926,179.13,179.12,1.1171]
[1729810061664,2.7926,179.13,179.12,1.10024]
[1729810062659,1.1447,179.18,179.01,2.3657]
[1729810062868,2.793,179.1,179.05,16.38763333]
[1729810063257,2.793,179.1,179.05,17.48778333]
[1729810063457,2.793,179.1,179.06,2.7935]
[1729810063853,2.793,179.1,179.06,3.89365]
[1729810064862,2.793,179.1,179.08,12.06763333]
[1729810065066,2.7927,179.12,179.09,4.28]
[1729810065268,2.7927,179.12,179.1,12.06763333]
[1729810065464,2.3293,179.18,179.1,12.06763333]
[1729810065771,2.7924,179.14,179.1,13.16778333]
[1729810066361,2.7924,179.14,179.11,2.7928]
[1729810067072,2.7924,179.14,179.11,3.89295]
[1729810067260,2.7922,179.15,179.11,3.89295]
[1729810067764,2.3293,179.18,179.11,3.89295]
[1729810067970,2.7923,179.15,179.11,3.89295]
[1729810072971,2.7923,179.15,179.11,1.10015]
[1729810073170,2.7923,179.15,179.12,2.7925]
[1729810073367,2.7923,179.15,179.13,4.28]
[1729810073769,2.7923,179.15,179.13,5.38015]
[1729810074469,2.7908,179.24,179.14,2.7923]
[1729810074773,5.22636193,179.23,179.15,12.06763333]
[1729810074968,4.28,179.23,179.15,12.06763333]
[1729810075561,2.7918,179.18,179.15,13.16778333]
[1729810076269,4.28,179.23,179.15,13.18441333]
[1729810076475,2.7919,179.17,179.15,13.16775333]
[1729810077084,4.28,179.23,179.15,13.16775333]
[1729810078380,2.7919,179.17,179.15,13.16775333]
[1729810083789,12.06763333,179.18,179.11,1.10012]
[1729810083994,12.06763333,179.16,179.09,4.28]
[1729810084181,12.06763333,179.16,179.08,0.9001]
[1729810084379,2.7929,179.11,179.08,1.10027]
[1729810085279,1.1727,179.15,179.08,1.10027]
[1729810085586,2.7932,179.09,179.07,1.10021]
[1729810087090,2.7932,179.09,179.07,5.38021]
[1729810087483,1.1727,179.15,179.07,8.17351]
[1729810087685,1.1727,179.15,179.08,12.06763333]
[1729810087984,1.1727,179.15,179.08,13.16784333]
[1729810088786,2.7925,179.13,179.08,13.16784333]
[1729810089080,1.1727,179.15,179.08,13.16784333]
[1729810089691,2.7927,179.12,179.08,13.16784333]
[1729810089893,2.7927,179.12,179.08,15.96104333]
[1729810090195,2.7927,179.12,179.08,13.16784333]
[1729810091085,2.7927,179.12,179.08,15.96104333]
[1729810092187,2.7925,179.13,179.08,1.10021]
[1729810092496,2.7925,179.13,179.1,12.06763333]
[1729810092792,2.7928,179.11,179.08,17.44784333]
[1729810092991,2.7928,179.11,179.08,17.44775333]
[1729810093191,2.7928,179.11,179.08,17.46488333]
[1729810093690,2.7928,179.11,179.08,17.44769333]
[1729810093899,2.7928,179.11,179.08,20.24099333]
[1729810094289,2.7927,179.12,179.08,12.00981752]
[1729810094592,7.72981752,179.1,179.05,7.72981752]
[1729810094799,2.7931,179.09,179.08,7.72981752]
[1729810096190,2.7929,179.11,179.08,7.72981752]
[1729810096389,2.7929,179.11,179.1,7.72981752]
[1729810096993,2.793,179.1,179.09,7.72981752]
[1729810097491,7.72981752,179.13,179.07,7.72981752]
[1729810097697,2.7933,179.08,179.07,7.72981752]
[1729810098197,2.7933,179.08,179.06,7.72981752]
[1729810099693,7.72981752,179.12,179.06,7.72981752]
[1729810099896,2.7934,179.08,179.06,7.72981752]
[1729810101101,2.7933,179.08,179.06,7.72981752]
[1729810102889,7.72981752,179.13,179.06,7.72981752]
[1729810103093,2.7931,179.1,179.09,7.72981752]
[1729810103796,2.7931,179.1,179.05,3.91085]
[1729810103998,2.7931,179.1,179.05,1.11725]
[1729810104194,2.7931,179.1,179.09,7.72981752]
[1729810105993,2.7928,179.11,179.09,7.72981752]
[1729810106194,1.2195,179.16,179.1,7.72981752]
[1729810106396,1.2195,179.16,179.05,1.11725]
[1729810106397,1.2195,179.16,179.15,7.72981752]
[1729810107598,2.7922,179.15,179.13,7.72981752]
[1729810107903,2.3754,179.17,179.13,7.72981752]
[1729810108101,2.3754,179.17,179.15,7.72981752]
[1729810108303,2.3754,179.17,179.14,12.06703221]
[1729810109998,2.3754,179.17,179.12,1.11725]
[1729810110203,2.3754,179.17,179.1,17.38428221]
[1729810110504,2.3754,179.17,179.12,12.06703221]
[1729810111204,2.3754,179.17,179.12,14.85953221]
[1729810111205,5.1674,179.17,179.12,14.85953221]
[1729810111502,5.1674,179.17,179.12,12.06703221]
[1729810112105,5.1674,179.17,179.12,14.85963221]
[1729810113604,4.2,179.19,179.12,12.06703221]
[1729810113902,2.7917,179.18,179.12,13.16696221]
[1729810114607,2.7919,179.17,179.13,2.7924]
[1729810115507,5.4465,179.21,179.13,2.7924]
[1729810115807,5.4465,179.21,179.12,13.16696221]
[1729810115808,5.4465,179.21,179.14,2.7922]
[1729810116206,2.7916,179.19,179.14,2.7922]
[1729810118004,5.4465,179.21,179.15,12.06703221]
[1729810118209,5.4465,179.21,179.15,14.85903221]
[1729810118403,5.4465,179.21,179.15,12.06703221]
[1729810118604,2.7916,179.19,179.15,12.06703221]
[1729810119412,5.4465,179.21,179.15,12.06703221]
[1729810119613,2.7917,179.18,179.15,12.06703221]
[1729810120515,5.4465,179.21,179.15,12.06703221]
[1729810120708,2.7917,179.19,179.15,12.06703221]
[1729810121012,5.4465,179.21,179.16,2.792]
[1729810121314,4.2,179.26,179.19,12.06703221]
[1729810121515,0.94621824,179.25,179.19,12.06703221]
[1729810121715,2.7913,179.21,179.17,12.06703221]
[1729810122009,4.2,179.26,179.17,12.06703221]
[1729810122214,0.94633301,179.25,179.17,12.06703221]
[1729810122708,0.94633301,179.25,179.19,12.06703221]
[1729810122906,2.791,179.23,179.19,12.06703221]
[1729810123307,4.2,179.26,179.19,12.06703221]
[1729810123508,0.94623304,179.25,179.19,12.06703221]
[1729810123714,7.741,179.27,179.19,12.06703221]
[1729810124109,2.791,179.23,179.19,12.06703221]
[1729810124603,2.7901,179.29,179.21,12.06703221]
[1729810124810,2.7901,179.29,179.26,12.06703221]
[1729810125005,4.26,179.36,179.26,12.06703221]
[1729810125208,13.01281448,179.35,179.26,12.06703221]
[1729810125413,13.01281448,179.35,179.24,17.44331221]
[1729810125720,2.7903,179.28,179.24,17.44331221]
[1729810125907,1.1735,179.37,179.27,12.06703221]
[1729810126114,0.9457375,179.36,179.29,12.06703221]
[1729810126311,2.7894,179.33,179.29,12.06703221]
[1729810126509,0.9457375,179.32,179.29,12.06703221]
[1729810126710,4.26,179.36,179.2,3.5244]
[1729810127016,2.7902,179.28,179.24,12.06703221]
[1729810127714,2.7902,179.28,179.24,13.16718221]
[1729810127917,12.06703221,179.35,179.24,13.18331221]
[1729810128111,2.7907,179.25,179.22,13.16718221]
[1729810128314,12.06703221,179.3,179.2,12.06703221]
[1729810128615,2.7912,179.21,179.2,12.06703221]
[1729810128912,16.32703221,179.28,179.17,17.42706221]
[1729810129209,0.94618219,179.27,179.17,16.32703221]
[1729810129415,2.7912,179.22,179.17,17.42706221]
[1729810130014,2.7914,179.2,179.17,17.42706221]
[1729810130420,2.7914,179.2,179.17,16.32703221]
[1729810130606,16.32703221,179.28,179.17,16.32703221]
[1729810130812,2.7917,179.18,179.16,4.26]
[1729810131816,2.7921,179.16,179.13,16.32703221]
[1729810132115,2.7921,179.16,179.13,17.44388221]
[1729810132317,2.7921,179.16,179.13,17.32705221]
[1729810132817,2.7921,179.16,179.13,13.06705221]
[1729810133111,2.7922,179.15,179.13,12.06703221]
[1729810133519,2.7924,179.14,179.11,17.32705221]
[1729810133716,2.7924,179.14,179.11,17.42693221]
[1729810134016,1.1827,179.21,179.13,12.06703221]
[1729810134207,2.7921,179.16,179.13,12.06703221]
[1729810134410,2.7921,179.16,179.13,13.16693221]
[1729810136916,2.7922,179.15,179.13,13.16693221]
[1729810137312,2.7922,179.15,179.12,1.0999]
[1729810137718,2.7925,179.13,179.12,1.0999]
[1729810138417,2.7929,179.11,179.1,1.1]
[1729810138719,2.7929,179.11,179.1,12.06703221]
[1729810139112,4.26,179.2,179.08,1.0999]
[1729810139113,12.06703221,179.18,179.08,1.0999]
[1729810139419,12.06703221,179.18,179.07,4.26]
[1729810139619,12.06703221,179.16,179.07,4.26]
[1729810139915,2.7933,179.08,179.07,4.26]
[1729810140116,16.32703221,179.16,179.06,17.42718221]
[1729810140322,12.06703221,179.14,179.0,114.38260219]
[1729810140520,12.06703221,179.14,179.03,12.06703221]
[1729810140521,2.7937,179.06,179.03,12.06703221]
[1729810141022,2.7937,179.06,179.03,13.18450221]
[1729810141321,2.7937,179.06,179.03,13.16703221]
[1729810143119,2.7937,179.06,179.05,12.06703221]
[1729810143418,12.06703221,179.14,179.05,12.06703221]
[1729810143619,2.7934,179.07,179.05,12.06703221]
[1729810144023,12.06703221,179.14,179.05,12.06703221]
[1729810144212,2.7936,179.06,179.05,12.06703221]
[1729810145618,2.7929,179.11,179.07,2.7934]
[1729810145923,2.7929,179.11,179.1,12.06703221]
[1729810146117,2.7924,179.14,179.1,12.06703221]
[1729810146317,4.26,179.19,179.1,12.06703221]
[1729810146920,2.7926,179.13,179.1,12.06703221]
[1729810147121,4.26,179.19,179.1,12.06703221]
[1729810147320,4.26,179.19,179.08,12.06703221]
[1729810147515,12.06703221,179.18,179.07,4.26]
[1729810147723,12.06703221,179.15,179.07,4.26]
[1729810147919,2.4535,179.14,179.07,4.26]
[1729810148316,2.7932,179.09,179.05,1.10012]
[1729810148718,2.4535,179.14,179.05,1.10012]
[1729810148923,2.4535,179.14,179.06,12.06703221]
[1729810149125,12.06703221,179.13,179.05,1.10012]
[1729810149314,13.24503221,179.13,179.04,5.36012]
[1729810149519,12.06703221,179.11,179.04,1.10012]
[1729810149714,12.06703221,179.11,179.02,12.06703221]
[1729810149715,12.06703221,179.08,178.98,60.3]
[1729810149922,12.06703221,179.06,178.99,4.26]
[1729810150426,16.32703221,179.06,178.96,17.42724221]
[1729810150620,12.06703221,179.04,178.96,1.11803]
[1729810150819,12.06703221,179.04,178.96,1.10015]
[1729810151023,12.06703221,179.04,178.95,4.26]
[1729810151821,2.7945,179.01,178.95,5.26008]
[1729810152028,2.7945,179.01,178.95,17.32711221]
[1729810152719,2.7945,179.01,178.96,2.795]
[1729810153122,2.7945,179.01,178.96,3.79508]
[1729810153416,2.7945,179.01,178.96,2.795]
[1729810154920,2.7941,179.03,178.96,2.795]
[1729810155126,2.3217,179.05,178.96,3.89506]
[1729810155627,2.7945,179.01,178.96,3.89506]
[1729810156021,2.7945,179.01,178.97,2.7949]
[1729810156222,2.7945,179.01,178.97,3.89496]
[1729810157127,2.7942,179.02,178.98,2.7947]
[1729810157325,2.7942,179.02,178.97,1.10006]
[1729810157622,2.3217,179.05,178.96,1.10006]
[1729810157827,2.3217,179.05,178.97,2.7949]
[1729810158927,2.7943,179.02,178.97,2.7949]
[1729810159927,2.7943,179.02,178.97,2.795]
[1729810161732,2.7948,178.99,178.94,3.89536]
[1729810161936,4.3,179.03,178.96,12.06703221]
[1729810162144,2.3217,179.05,178.98,12.06703221]
[1729810162331,2.7939,179.04,178.99,2.7946]
[1729810162637,1.2536,179.07,179.01,12.06703221]
[1729810162935,1.2536,179.07,178.98,1.09975]
[1729810163128,1.2263,179.06,178.99,12.06703221]
[1729810163330,2.794,179.04,178.99,14.86153221]
[1729810165031,2.7939,179.04,178.99,14.86153221]
[1729810165231,2.7939,179.04,179.0,2.7945]
[1729810165538,2.7939,179.04,179.01,12.06703221]
[1729810165742,2.7941,179.03,178.99,14.86153221]
[1729810166129,12.06703221,179.05,178.96,0.20001]
[1729810166343,12.06703221,179.05,178.96,4.50001]
[1729810166531,12.06703221,179.05,178.97,2.7949]
[1729810166532,2.7945,179.01,178.97,2.7949]
[1729810166933,12.06703221,179.05,178.97,2.7949]
[1729810167136,2.7949,178.98,178.94,8.19536]
[1729810167334,12.06703221,179.05,178.94,5.39996]
[1729810167634,12.06703221,179.02,178.94,4.3]
[1729810167835,16.36703221,179.02,178.94,4.3]
[1729810168030,16.36703221,179.02,178.92,13.18512221]
[1729810168236,2.7949,178.98,178.93,2.7955]
[1729810168539,1.1777,179.01,178.92,12.06703221]
[1729810168744,12.06703221,179.0,178.91,4.3]
[1729810168934,13.27343221,179.0,178.91,4.3]
[1729810169137,1.2091,178.99,178.91,4.3]
[1729810169336,16.36703221,178.98,178.89,1.11828]
[1729810169539,16.36703221,178.98,178.88,4.3]
[1729810170339,2.7955,178.94,178.89,2.7962]
[1729810170538,4.3,178.98,178.89,12.06703221]
[1729810170846,1.2091,178.99,178.89,13.16715221]
[1729810171338,2.795,178.97,178.92,2.7957]
[1729810171537,1.2091,178.99,178.93,12.06703221]
[1729810172731,4.0039,178.99,178.94,2.7954]
[1729810173130,1.2091,178.99,178.94,2.7954]
[1729810173336,2.7949,178.98,178.93,14.86253221]
[1729810174444,2.7947,178.99,178.95,2.7952]
[1729810174635,1.2064,179.0,178.95,2.7952]
[1729810174831,1.1777,179.01,178.95,2.7952]
[1729810175233,1.1777,179.01,178.95,14.86223221]
[1729810175443,1.1777,179.01,178.95,12.06703221]
[1729810175444,2.7947,178.99,178.95,12.06703221]
[1729810178042,2.7953,178.95,178.91,3.89573]
[1729810178251,2.7953,178.95,178.91,2.7958]
[1729810179147,12.06703221,178.99,178.88,13.18531221]
[1729810179148,4.3,178.98,178.88,13.18531221]
[1729810179350,12.06703221,178.96,178.88,12.06703221]
[1729810179550,12.06703221,178.96,178.86,13.18537221]
[1729810179551,2.459,178.95,178.86,13.18537221]
[1729810179739,2.7964,178.88,178.84,2.7969]
[1729810179941,16.36703221,178.9,178.79,12.06703221]
[1729810180151,16.36703221,178.9,178.79,1.11834]
[1729810180152,4.3,178.89,178.79,1.11834]
[1729810180345,4.3,178.89,178.8,12.06703221]
[1729810180543,2.7968,178.86,178.81,2.7973]
[1729810180746,4.3,178.89,178.8,17.46693221]
[1729810181138,2.7968,178.85,178.8,20.26443221]
[1729810181344,5.5272,178.89,178.8,8.1974]
[1729810181540,5.5272,178.89,178.8,5.3999]
[1729810181746,5.5272,178.89,178.8,17.46693221]
[1729810181947,1.2272,178.89,178.83,12.06703221]
[1729810182255,16.36703221,178.92,178.83,13.16693221]
[1729810182454,16.36703221,178.92,178.83,12.06703221]
[1729810183448,2.7962,178.89,178.84,2.797]
[1729810185149,13.32303221,178.94,178.84,16.32703221]
[1729810185453,1.256,178.94,178.86,12.06703221]
[1729810186249,2.7958,178.92,178.87,2.7965]
[1729810187053,1.256,178.94,178.89,2.7961]
[1729810187353,5.2544,178.95,178.89,12.06703221]
[1729810187946,2.459,178.95,178.89,12.06703221]
[1729810188153,2.7955,178.94,178.89,12.06703221]
[1729810189057,2.7955,178.94,178.89,14.86323221]
[1729810189254,2.7957,178.93,178.87,12.06703221]
[1729810189452,2.459,178.95,178.87,12.06703221]
[1729810189852,2.459,178.95,178.87,14.86353221]
[1729810190453,2.7958,178.92,178.87,14.86353221]
[1729810191858,7.78454644,179.23,178.86,5.35996]
[1729810192060,1437.0,179.63,178.96,12.06703221]
[1729810192061,12.06703221,179.06,178.96,12.06703221]
[1729810192261,1.258,179.05,178.96,12.06703221]
[1729810192455,3.613,179.05,178.96,12.06703221]
[1729810192857,2.7947,178.99,178.96,12.06703221]
[1729810194254,2.7947,178.99,178.94,1.09996]
[1729810195256,2.7947,178.99,178.95,2.7953]
[1729810195455,2.7944,179.01,178.94,1.09996]
[1729810195753,4.26,179.03,178.96,2.795]
[1729810197159,2.7945,179.01,178.96,2.795]
[1729810197662,2.7945,179.0,178.96,2.795]
[1729810198860,2.794,179.04,178.99,2.7946]
[1729810199065,3.613,179.05,178.99,2.7946]
[1729810199957,3.613,179.05,178.97,3.89468]
[1729810200166,4.26,179.04,178.95,1.09978]
[1729810200352,2.7948,178.99,178.93,19.32422471]
[1729810200557,4.26,179.04,178.94,2.7953]
[1729810201360,2.7948,178.98,178.94,2.7953]
[1729810202460,4.26,179.04,178.91,5.3599]
[1729810202461,19.32422471,179.03,178.91,5.3599]
[1729810202664,19.32422471,179.0,178.87,23.58422471]
[1729810202957,2.7957,178.93,178.88,2.7963]
[1729810203157,4.26,178.96,178.86,5.37844]
[1729810203356,19.32422471,178.95,178.86,4.26]
[1729810203555,19.32422471,178.95,178.83,4.26]
[1729810203761,19.32422471,178.95,178.81,19.32422471]
[1729810203957,19.32422471,178.95,178.83,4.26]
[1729810204153,7.8212,178.96,178.81,2.7974]
[1729810204154,2.7967,178.87,178.81,2.7974]
[1729810204455,7.0567,178.87,178.81,2.7974]
[1729810204654,4.26,178.87,178.81,2.7974]
[1729810204863,7.0566,178.87,178.81,2.7974]
[1729810205262,4.26,178.87,178.75,19.32422471]
[1729810205461,4.26,178.87,178.74,3.5155]
[1729810205462,22.99982471,178.86,178.74,1.0999]
[1729810205659,22.99982471,178.86,178.73,5.37925]
[1729810205960,2.7974,178.82,178.76,2.7981]
[1729810206161,7.0574,178.82,178.76,2.7981]
[1729810206467,2.7975,178.81,178.76,2.7981]
[1729810207864,4.26,178.82,178.74,1.09981]
[1729810208065,2.7977,178.8,178.76,2.7983]
[1729810208764,4.26,178.82,178.74,1.09981]
[1729810208971,4.26,178.82,178.74,5.35981]
[1729810209470,2.7977,178.8,178.76,2.7982]
[1729810210770,4.26,178.82,178.72,1.09987]
[1729810210970,4.26,178.82,178.72,4.26]
[1729810211163,4.26,178.82,178.72,5.36]
[1729810211367,4.26,178.82,178.67,19.32422471]
[1729810211368,19.32422471,178.81,178.67,19.32422471]
[1729810211663,19.32422471,178.81,178.68,4.26]
[1729810211868,19.32422471,178.81,178.67,4.26]
[1729810212266,19.32422471,178.78,178.65,19.32422471]
[1729810212469,19.32422471,178.75,178.65,4.26]
[1729810212660,2.7992,178.71,178.65,2.8]
[1729810212862,3.6248,178.77,178.65,19.32422471]
[1729810213267,2.7987,178.74,178.68,2.7994]
[1729810214175,3.6248,178.77,178.66,1.1196]
[1729810214377,2.7989,178.72,178.67,2.7996]
[1729810215266,3.6248,178.77,178.68,2.7994]
[1729810215971,3.6248,178.77,178.71,2.7989]
[1729810216171,3.6248,178.77,178.68,19.32422471]
[1729810216172,2.429,178.77,178.68,20.42406471]
[1729810216368,2.7982,178.77,178.68,20.42406471]
[1729810216569,4.38,178.8,178.68,20.42406471]
[1729810216774,4.38,178.8,178.71,2.7989]
[1729810216969,2.7983,178.76,178.71,2.7989]
[1729810217164,2.7983,178.76,178.72,2.7989]
[1729810217365,4.38,178.8,178.72,2.7989]
[1729810217575,2.7981,178.77,178.72,2.7989]
[1729810217765,4.38,178.8,178.71,1.09984]
[1729810217964,4.38,178.8,178.74,2.7985]
[1729810218573,2.7977,178.8,178.74,2.7984]
[1729810218871,4.38,178.82,178.72,4.38]
[1729810220263,2.798,178.78,178.72,7.1787]
[1729810220772,7.1773,178.82,178.75,2.7984]
[1729810220972,4.38,178.82,178.74,19.32422471]
[1729810221175,23.70422471,178.82,178.72,4.38]
[1729810221370,23.70422471,178.82,178.71,2.7989]
[1729810221371,2.798,178.78,178.71,2.7989]
[1729810221969,2.798,178.78,178.69,5.4991]
[1729810222178,2.798,178.78,178.72,2.7988]
[1729810224274,4.38,178.77,178.69,4.38]
[1729810224481,4.38,178.77,178.62,1.2336]
[1729810224482,4.38,178.77,178.67,1.1191]
[1729810224781,1.2549,178.76,178.66,5.4991]
[1729810225173,2.7986,178.74,178.68,2.7994]
[1729810225375,1.2524,178.75,178.66,5.47996]
[1729810225879,1.2549,178.76,178.68,19.32422471]
[1729810226079,1.2549,178.76,178.68,20.42418471]
[1729810226474,19.32422471,178.73,178.56,19.32422471]
[1729810226676,5.6324,178.72,178.57,1.2336]
[1729810226876,5.6324,178.72,178.57,2.35338]
[1729810227181,4.38,178.71,178.59,19.32422471]
[1729810227374,4.38,178.71,178.6,4.38]
[1729810227879,4.38,178.71,178.6,5.47959]
[1729810228279,2.7992,178.7,178.65,2.7999]
[1729810228476,4.38,178.71,178.61,1.09959]
[1729810228680,4.38,178.71,178.59,5.47959]
[1729810228879,4.38,178.71,178.58,1.11978]
[1729810229076,4.38,178.71,178.58,5.49978]
[1729810229982,4.38,178.71,178.58,5.47959]
[1729810230178,2.7998,178.66,178.6,2.8006]
[1729810230495,2.7998,178.66,178.58,5.49978]
[1729810230682,2.7999,178.66,178.61,2.8005]
[1729810230982,1.2524,178.72,178.58,5.49978]
[1729810231175,1.2524,178.72,178.61,19.32422471]
[1729810231376,4.38,178.71,178.61,19.32422471]
[1729810231576,4.38,178.71,178.62,4.38]
[1729810231879,8.4313,178.72,178.62,4.38]
[1729810232087,5.6324,178.72,178.62,5.49978]
[1729810232488,2.7991,178.71,178.65,2.7999]
[1729810233385,5.6324,178.72,178.64,1.11978]
[1729810233386,1.2524,178.72,178.64,1.11978]
[1729810233682,1.2524,178.72,178.64,20.44400471]
[1729810233884,20.57662471,178.72,178.61,1.11978]
[1729810234080,2.7999,178.66,178.51,4.38]
[1729810234289,1.2499,178.65,178.53,19.32422471]
[1729810234478,1.2499,178.65,178.55,19.32422471]
[1729810234789,4.0499,178.65,178.55,20.42415471]
[1729810234990,4.0499,178.65,178.6,2.8006]
[1729810236586,1.2499,178.65,178.57,1.09993]
[1729810236983,2.8006,178.62,178.57,2.8011]
[1729810238093,1.2566,178.64,178.55,2.8015]
[1729810238094,2.801,178.59,178.55,2.8015]
[1729810238886,2.8008,178.6,178.53,4.38]
[1729810239096,4.38,178.62,178.56,2.8014]
[1729810239392,2.8007,178.61,178.56,2.8014]
[1729810240790,4.38,178.62,178.54,0.19997]
[1729810240992,7.1805,178.62,178.55,19.32422471]
[1729810241196,1.2566,178.64,178.55,19.32422471]
[1729810241498,1.2566,178.64,178.57,19.32422471]
[1729810241790,1.2566,178.64,178.57,23.70422471]
[1729810241990,1.2566,178.64,178.57,23.90419471]
[1729810242191,4.0568,178.64,178.57,23.90419471]
[1729810242892,1.2566,178.64,178.57,23.90419471]
[1729810243291,1.2566,178.64,178.59,2.8009]
[1729810243890,2.8003,178.63,178.59,2.8009]
[1729810244700,2.8003,178.63,178.57,24.82444471]
[1729810244889,2.8003,178.63,178.6,2.8008]
[1729810245090,1.2566,178.64,178.6,2.8008]
[1729810245297,4.0568,178.64,178.6,2.8008]
[1729810245687,4.0568,178.64,178.57,24.82444471]
[1729810245894,2.7998,178.66,178.62,2.8004]
[1729810247394,2.3445,178.7,178.6,19.32422471]
[1729810247596,2.3445,178.7,178.63,19.32422471]
[1729810248301,5.1437,178.7,178.65,2.7999]
[1729810248499,2.3445,178.7,178.65,2.7999]
[1729810248793,2.7995,178.69,178.62,4.46]
[1729810248995,2.3445,178.7,178.63,2.8002]
[1729810249795,2.7995,178.68,178.63,2.8002]
[1729810249998,2.3445,178.7,178.63,2.8002]
[1729810251000,2.3445,178.7,178.62,4.46]
[1729810251201,21.66872471,178.7,178.58,4.46]
[1729810252104,2.8001,178.65,178.6,2.8007]
[1729810255604,2.8001,178.65,178.58,4.46]
[1729810255800,2.8001,178.65,178.6,2.8007]
[1729810257599,2.8001,178.65,178.61,2.8006]
[1729810258113,12.10075096,178.69,178.58,16.56075096]